bitfinex-derivatives/quotes_BTCF0:USTF0_20250508
["timestamp","ask_amount","ask_price","bid_price","bid_amount"]
[1746707512482,0.2840145,99545.0,99544.0,0.3608]
[1746707512875,0.3168145,99545.0,99544.0,0.3608]
[1746707513080,0.3168145,99545.0,99544.0,0.729686]
[1746707513380,0.3168145,99545.0,99544.0,0.791286]
[1746707514088,0.3168145,99545.0,99544.0,0.4224]
[1746707515089,0.3168145,99545.0,99544.0,0.3918]
[1746707515990,0.3478145,99545.0,99544.0,0.3918]
[1746707517278,0.3478145,99545.0,99544.0,0.5598]
[1746707518190,0.3478145,99545.0,99544.0,0.3918]
[1746707518592,0.3478145,99545.0,99544.0,0.592686]
[1746707518593,0.0329,99545.0,99544.0,0.592686]
[1746707518791,0.001,99546.0,99545.0,0.200884]
[1746707518983,0.001,99546.0,99545.0,0.243584]
[1746707519183,0.001,99546.0,99545.0,0.433684]
[1746707519380,0.0606,99559.0,99549.0,0.2008759]
[1746707519678,0.0502038,99580.0,99549.0,0.2008759]
[1746707519679,0.0327,99558.0,99549.0,0.6316759]
[1746707519878,0.0606,99556.0,99549.0,0.5616759]
[1746707520082,0.22081066,99550.0,99549.0,0.7296759]
[1746707520483,0.01993676,99550.0,99549.0,0.7296759]
[1746707520888,0.0302,99573.0,99556.0,0.0502149]
[1746707521088,0.0302,99573.0,99564.0,0.2008382]
[1746707521089,0.050211,99565.0,99564.0,0.2008382]
[1746707521382,0.050209,99569.0,99568.0,0.25104]
[1746707521587,0.2033435,99572.0,99571.0,0.2008315]
[1746707521796,0.00251,99572.0,99571.0,0.5616315]
[1746707522187,0.2033395,99572.0,99571.0,0.7296315]
[1746707522382,0.2033395,99572.0,99571.0,0.7596315]
[1746707522588,0.2033395,99572.0,99571.0,0.7296315]
[1746707522787,0.2033395,99572.0,99571.0,0.74103506]
[1746707523393,0.2043395,99572.0,99571.0,0.74103506]
[1746707524499,0.2053395,99572.0,99571.0,0.74103506]
[1746707526101,0.2028295,99572.0,99571.0,0.74103506]
[1746707527799,0.002,99572.0,99571.0,0.77103506]
[1746707528001,0.001,99576.0,99575.0,0.2008234]
[1746707528194,0.001,99576.0,99575.0,0.6616234]
[1746707528395,0.001,99576.0,99575.0,0.6726234]
[1746707528802,0.2018214,99576.0,99575.0,0.6726234]
[1746707529101,0.2028214,99576.0,99575.0,0.8406234]
[1746707529301,0.001,99576.0,99575.0,0.8406234]
[1746707529794,0.001,99576.0,99575.0,0.85632129]
[1746707530305,0.002,99576.0,99575.0,0.85632129]
[1746707530897,0.0502029,99581.0,99580.0,0.2510122]
[1746707531197,0.0309,99590.0,99586.0,0.0501999]
[1746707531397,0.00251,99588.0,99587.0,0.3466986]
[1746707531602,0.2033072,99588.0,99587.0,0.7074986]
[1746707531804,0.2033072,99588.0,99587.0,0.6572992]
[1746707532207,0.2033072,99588.0,99587.0,0.67299542]
[1746707533199,0.2033072,99588.0,99587.0,0.84199542]
[1746707533391,0.2033072,99588.0,99587.0,0.84970486]
[1746707533907,0.0501984,99590.0,99587.0,0.89990426]
[1746707534098,0.2509936,99590.0,99589.0,0.2007952]
[1746707534294,0.1,99600.0,99589.0,0.14569526]
[1746707534504,0.231382,99599.0,99598.0,0.200775]
[1746707534706,0.1,99600.0,99599.0,0.200775]
[1746707535004,0.050177,99633.0,99599.0,0.22609935]
[1746707535206,0.3007407,99619.0,99618.0,0.5615368]
[1746707535505,0.3007407,99619.0,99618.0,0.37649535]
[1746707535702,0.3619407,99619.0,99618.0,0.37649535]
[1746707536005,0.3619407,99619.0,99618.0,0.01569255]
[1746707536207,0.5299407,99619.0,99618.0,0.01569255]
[1746707536597,0.5299407,99619.0,99618.0,0.01669255]
[1746707536998,0.5299407,99619.0,99618.0,0.01669218]
[1746707537400,0.5299407,99619.0,99618.0,0.01769218]
[1746707538108,0.5299407,99619.0,99618.0,0.002]
[1746707538705,0.2007428,99615.0,99614.0,0.2007441]
[1746707539109,0.3687428,99615.0,99614.0,0.2007441]
[1746707539509,0.2007569,99608.0,99605.0,0.3608]
[1746707539709,0.2007569,99608.0,99595.0,0.2561469]
[1746707539710,0.5615569,99608.0,99595.0,0.2561469]
[1746707539911,0.2007569,99608.0,99595.0,0.2561469]
[1746707540106,0.3687569,99608.0,99595.0,0.2561469]
[1746707540505,1.1112529,99608.0,99607.0,0.01694316]
[1746707540705,0.200775,99599.0,99595.0,0.2561469]
[1746707541003,0.561575,99599.0,99594.0,0.2561469]
[1746707541204,0.729575,99599.0,99594.0,0.2561469]
[1746707541608,0.793575,99599.0,99594.0,0.2561469]
[1746707542310,0.793575,99599.0,99598.0,0.00550603]
[1746707543112,0.793575,99599.0,99598.0,0.002]
[1746707543113,0.794575,99599.0,99598.0,0.002]
[1746707543504,1.44497901,99599.0,99598.0,1e-07]
[1746707543907,0.2008214,99576.0,99575.0,0.00100426]
[1746707544112,0.3688214,99576.0,99575.0,0.00100426]
[1746707544315,0.4692494,99576.0,99575.0,0.00100426]
[1746707544518,0.8300494,99576.0,99575.0,6e-08]
[1746707544810,0.8909494,99576.0,99575.0,6e-08]
[1746707545015,0.89952664,99576.0,99575.0,0.00400006]
[1746707545224,0.89952664,99576.0,99567.0,0.2561469]
[1746707545225,0.2008376,99568.0,99567.0,0.1371469]
[1746707545412,0.6416376,99568.0,99567.0,0.0827944]
[1746707545612,0.9920736,99568.0,99567.0,0.0827944]
[1746707546013,0.9120736,99568.0,99567.0,0.0827944]
[1746707546216,1.5800736,99568.0,99567.0,0.0827944]
[1746707546410,1.5800736,99568.0,99567.0,0.0847944]
[1746707547115,1.3300736,99568.0,99567.0,0.002]
[1746707547911,0.2008819,99546.0,99543.0,0.3608]
[1746707548117,0.168,99546.0,99545.0,0.26746382]
[1746707548613,0.168,99546.0,99545.0,0.26759169]
[1746707548817,0.3688819,99546.0,99545.0,0.26759169]
[1746707549018,0.3698819,99546.0,99545.0,0.26759169]
[1746707549314,0.001,99546.0,99545.0,0.26759169]
[1746707549724,0.001,99546.0,99545.0,0.51759169]
[1746707550219,0.001,99546.0,99545.0,0.45118854]
[1746707550416,0.004,99546.0,99545.0,0.45218854]
[1746707551222,0.004,99546.0,99545.0,0.45218704]
[1746707551722,0.004,99546.0,99545.0,0.48498709]
[1746707554330,0.3608,99570.0,99545.0,0.72410309]
[1746707554520,0.2008436,99565.0,99564.0,0.2008441]
[1746707554831,0.2008436,99565.0,99564.0,0.03129852]
[1746707555425,0.2008436,99565.0,99564.0,0.09679852]
[1746707555823,0.2008436,99565.0,99564.0,0.29764412]
[1746707556023,0.2008436,99565.0,99564.0,0.09679852]
[1746707556223,0.2008436,99565.0,99564.0,0.29764412]
[1746707557219,0.2008436,99565.0,99564.0,0.30264265]
[1746707557828,0.2018436,99565.0,99564.0,0.30364265]
[1746707558126,0.2018436,99565.0,99564.0,0.30464265]
[1746707559428,0.2018436,99565.0,99564.0,0.30564265]
[1746707559627,0.2018436,99565.0,99564.0,0.10479705]
[1746707560128,0.2018436,99565.0,99564.0,0.07219705]
[1746707560129,0.4702796,99565.0,99564.0,0.07219705]
[1746707560325,0.4702796,99565.0,99564.0,0.03929705]
[1746707560530,1.1102796,99565.0,99564.0,0.02359685]
[1746707560824,1.1724796,99565.0,99564.0,5e-08]
[1746707561128,0.2008819,99546.0,99535.0,0.0313]
[1746707561328,0.9224819,99546.0,99535.0,0.0313]
[1746707561531,1.0229379,99546.0,99535.0,0.0313]
[1746707561926,1.0851379,99546.0,99535.0,0.0313]
[1746707562129,1.2531379,99546.0,99535.0,0.0313]
[1746707562323,1.2551379,99546.0,99535.0,0.0313]
[1746707562729,1.2551379,99546.0,99545.0,0.50100457]
[1746707564224,1.2551379,99546.0,99545.0,0.45629007]
[1746707564419,1.4851379,99546.0,99545.0,0.40508767]
[1746707564623,1.2591379,99546.0,99545.0,0.40508767]
[1746707565033,1.7091379,99546.0,99545.0,0.22931607]
[1746707565222,0.2009284,99523.0,99522.0,0.0326]
[1746707565419,0.5617284,99523.0,99522.0,0.0326]
[1746707565625,0.6622084,99523.0,99522.0,0.0326]
[1746707566125,0.8924084,99523.0,99522.0,0.0326]
[1746707567426,0.8954084,99523.0,99522.0,0.0326]
[1746707567631,0.7949284,99523.0,99522.0,0.0326]
[1746707567833,0.7919284,99523.0,99522.0,0.0326]
[1746707568131,0.7959284,99523.0,99522.0,0.0326]
[1746707568532,0.7949284,99523.0,99522.0,0.0326]
[1746707568834,0.7929284,99523.0,99522.0,0.0326]
[1746707569034,0.7939284,99523.0,99522.0,0.0326]
[1746707569634,0.7929284,99523.0,99522.0,0.0326]
[1746707569831,0.7939284,99523.0,99522.0,0.0326]
[1746707570037,0.3709284,99523.0,99522.0,0.0326]
[1746707570434,0.3699284,99523.0,99522.0,0.0326]
[1746707570628,0.3709284,99523.0,99522.0,0.0326]
[1746707571032,0.2009324,99521.0,99517.0,0.0315]
[1746707571531,0.2009385,99518.0,99517.0,0.0315]
[1746707571734,0.5617385,99518.0,99517.0,0.04720932]
[1746707572124,0.2009425,99516.0,99500.0,0.1]
[1746707572430,0.2009425,99516.0,99515.0,0.01671452]
[1746707572829,0.2310425,99516.0,99515.0,0.01671452]
[1746707573030,0.2310425,99516.0,99515.0,0.00100487]
[1746707573229,0.3990425,99516.0,99515.0,0.00100487]
[1746707573534,0.3990425,99516.0,99515.0,0.01671523]
[1746707575135,0.4010425,99516.0,99515.0,0.01771523]
[1746707576230,0.4000425,99516.0,99515.0,0.01771523]
[1746707576437,0.4030425,99516.0,99515.0,0.03342559]
[1746707577140,0.4929225,99516.0,99515.0,0.03242559]
[1746707578039,0.4919225,99516.0,99515.0,0.03242559]
[1746707578638,0.4919225,99516.0,99515.0,0.03242563]
[1746707579343,0.4618225,99516.0,99515.0,0.03242563]
[1746707580341,0.4618225,99516.0,99515.0,0.03342563]
[1746707580841,0.4588225,99516.0,99515.0,0.03242563]
[1746707581032,0.4608225,99516.0,99515.0,0.03342563]
[1746707581442,0.4588225,99516.0,99515.0,0.03242563]
[1746707581739,0.4608225,99516.0,99515.0,0.03342563]
[1746707582332,0.4588225,99516.0,99515.0,0.03342563]
[1746707582528,0.25888,99516.0,99515.0,0.03242563]
[1746707582834,0.4598225,99516.0,99515.0,0.03342563]
[1746707583235,0.2918225,99516.0,99515.0,0.03342563]
[1746707583627,0.2898625,99516.0,99515.0,0.03242451]
[1746707583832,0.2908625,99516.0,99515.0,0.03342451]
[1746707584235,0.2908625,99516.0,99515.0,0.23436689]
[1746707584436,0.2409625,99516.0,99515.0,0.03342239]
[1746707584835,0.6017625,99516.0,99515.0,0.03342239]
[1746707585041,0.5138425,99516.0,99515.0,0.03342239]
[1746707585237,0.5128425,99516.0,99515.0,0.03242239]
[1746707585444,0.1520425,99516.0,99515.0,0.03342239]
[1746707586136,0.3200425,99516.0,99515.0,0.03342239]
[1746707586339,0.3210425,99516.0,99515.0,0.03342239]
[1746707586942,0.3210425,99516.0,99515.0,0.03342267]
[1746707587143,0.1530425,99516.0,99515.0,0.03342267]
[1746707587441,0.1520425,99516.0,99515.0,0.03242267]
[1746707587644,0.1530425,99516.0,99515.0,0.03342267]
[1746707588138,0.1520425,99516.0,99515.0,0.03442267]
[1746707588337,0.1520425,99516.0,99515.0,0.01871363]
[1746707588544,0.1520425,99516.0,99515.0,0.03442264]
[1746707589240,0.1381545,99519.0,99515.0,0.03442264]
[1746707589446,0.1381545,99519.0,99516.0,0.11130901]
[1746707589744,0.2009385,99518.0,99517.0,0.01570901]
[1746707590247,0.2009385,99518.0,99517.0,0.46535827]
[1746707590438,0.2009385,99518.0,99517.0,0.26441777]
[1746707590740,0.2009385,99518.0,99517.0,0.46535827]
[1746707590941,0.19591187,99518.0,99517.0,0.26441777]
[1746707591343,0.19691187,99518.0,99517.0,0.26541777]
[1746707591647,0.001,99518.0,99517.0,0.82715827]
[1746707591946,0.08792,99519.0,99518.0,0.2009385]
[1746707592135,0.2888564,99519.0,99518.0,0.01570901]
[1746707592340,0.2888564,99519.0,99518.0,0.07730901]
[1746707592540,0.2888564,99519.0,99518.0,0.09301777]
[1746707592740,0.2009364,99519.0,99518.0,0.09301777]
[1746707593140,0.2009364,99519.0,99518.0,0.09501777]
[1746707594145,0.2019364,99519.0,99518.0,0.09801777]
[1746707594349,0.3699364,99519.0,99518.0,0.09801777]
[1746707594540,0.3699364,99519.0,99518.0,0.09801851]
[1746707594942,0.4578164,99519.0,99518.0,0.09801851]
[1746707596449,0.4578164,99519.0,99518.0,0.06681913]
[1746707596649,0.4578164,99519.0,99518.0,0.06481913]
[1746707596948,0.4578164,99519.0,99518.0,0.06681913]
[1746707596949,0.4892164,99519.0,99518.0,0.06681913]
[1746707597249,0.25688,99519.0,99518.0,0.26775763]
[1746707598041,0.4578164,99519.0,99518.0,0.43575763]
[1746707598246,0.2898164,99519.0,99518.0,0.43575763]
[1746707598646,0.08888,99519.0,99518.0,0.43575763]
[1746707598952,0.2009223,99526.0,99525.0,0.2009198]
[1746707599142,0.2009223,99526.0,99525.0,0.74543017]
[1746707599749,0.2009193,99528.0,99527.0,0.200918]
[1746707599949,0.2009193,99528.0,99527.0,0.23233713]
[1746707600445,0.08792,99535.0,99527.0,0.06141588]
[1746707600651,0.200907,99534.0,99533.0,0.2009062]
[1746707600851,0.2009183,99529.0,99528.0,0.2009142]
[1746707601054,0.08792,99535.0,99531.0,0.0502279]
[1746707601247,0.2888261,99535.0,99534.0,0.2009062]
[1746707601555,0.2888241,99535.0,99534.0,0.21661327]
[1746707601753,0.2888241,99535.0,99534.0,0.23232002]
[1746707602248,0.08792,99535.0,99534.0,0.40032002]
[1746707602449,0.08792,99535.0,99534.0,0.40132002]
[1746707602651,0.08792,99535.0,99534.0,0.43222002]
[1746707602856,0.2888241,99535.0,99534.0,0.43222002]
[1746707603553,0.2898241,99535.0,99534.0,0.41951295]
[1746707603751,0.2898241,99535.0,99534.0,0.43521733]
[1746707603948,0.001,99535.0,99534.0,0.43521733]
[1746707604458,0.2019041,99535.0,99534.0,0.43521733]
[1746707607663,0.001,99535.0,99534.0,0.43521739]
[1746707607953,0.0502136,99560.0,99548.0,0.2008779]
[1746707608152,0.0502155,99556.0,99548.0,0.74538234]
[1746707608349,0.0502166,99554.0,99548.0,0.76108909]
[1746707608550,0.20238351,99549.0,99548.0,0.76108909]
[1746707609055,0.20338351,99549.0,99548.0,0.76108909]
[1746707609260,0.20338351,99549.0,99548.0,0.76108679]
[1746707609556,0.20338351,99549.0,99548.0,0.76108678]
[1746707609755,0.20238351,99549.0,99548.0,0.76108678]
[1746707610057,0.20238351,99549.0,99548.0,0.76408678]
[1746707610255,0.00150761,99549.0,99548.0,0.76408678]
[1746707610460,0.0502118,99565.0,99564.0,0.2008416]
[1746707610757,0.0502118,99565.0,99564.0,0.21654373]
[1746707611153,0.2510672,99565.0,99564.0,0.40025048]
[1746707611348,0.2008554,99565.0,99564.0,0.38454835]
[1746707611658,0.2018554,99565.0,99564.0,0.40024888]
[1746707613060,0.2008554,99565.0,99564.0,0.40024888]
[1746707613252,0.2018554,99565.0,99564.0,0.40024888]
[1746707613458,0.2018554,99565.0,99564.0,0.41154751]
[1746707614560,0.2028554,99565.0,99564.0,0.41154751]
[1746707614761,0.2018554,99565.0,99564.0,0.41154751]
[1746707615357,0.2018554,99565.0,99564.0,0.41161641]
[1746707617162,0.2018554,99565.0,99564.0,0.41161236]
[1746707617355,0.2018554,99565.0,99564.0,0.38454835]
[1746707617556,0.2018554,99565.0,99564.0,0.3688416]
[1746707618254,0.2018554,99565.0,99564.0,0.41158035]
[1746707619158,0.2018554,99565.0,99564.0,0.69201635]
[1746707619159,0.001,99565.0,99564.0,0.69201635]
[1746707619365,0.001,99565.0,99564.0,0.50067856]
[1746707619568,0.001,99565.0,99564.0,0.56417856]
[1746707621362,0.001,99565.0,99564.0,0.57552864]
[1746707621860,0.001,99565.0,99564.0,0.60842864]
[1746707622958,0.001,99565.0,99564.0,0.60839803]
[1746707624569,0.001,99565.0,99564.0,0.50796203]
[1746707624971,0.001,99565.0,99564.0,0.50794718]
[1746707626858,0.001,99565.0,99564.0,0.49224908]
[1746707627465,0.001,99565.0,99564.0,0.4765486]
[1746707627972,0.001,99565.0,99564.0,0.4652416]
[1746707630768,0.2018436,99565.0,99564.0,0.2009]
[1746707630969,0.2018436,99565.0,99564.0,0.168]
[1746707631167,0.2008456,99564.0,99563.0,0.3608]
[1746707631369,0.2613456,99564.0,99563.0,0.3608]
[1746707631765,0.2008456,99564.0,99563.0,0.3608]
[1746707631960,0.169,99565.0,99564.0,0.2008456]
[1746707632172,0.2008181,99578.0,99568.0,0.2008376]
[1746707632373,0.0304,99580.0,99575.0,0.2008234]
[1746707632575,0.2008207,99577.0,99575.0,0.6016234]
[1746707632875,0.2018214,99576.0,99575.0,0.5616234]
[1746707633070,0.2322214,99576.0,99575.0,0.7937234]
[1746707633672,0.2322214,99576.0,99575.0,0.7967234]
[1746707633975,0.2322214,99576.0,99575.0,0.5959]
[1746707634172,0.2322214,99576.0,99575.0,0.3949]
[1746707634374,0.2322214,99576.0,99575.0,0.003]
[1746707634577,0.4822214,99576.0,99575.0,0.003]
[1746707634774,0.2322214,99576.0,99565.0,0.200842]
[1746707634977,0.2008416,99566.0,99565.0,0.200842]
[1746707635476,0.2008436,99565.0,99564.0,0.0328]
[1746707635675,0.2008436,99565.0,99564.0,0.0308]
[1746707636062,0.3688436,99565.0,99564.0,0.0308]
[1746707636877,0.36697444,99565.0,99564.0,0.2316456]
[1746707637064,0.36697444,99565.0,99564.0,0.2645456]
[1746707637268,0.19897444,99565.0,99564.0,0.2665456]
[1746707637872,0.00251,99569.0,99568.0,0.2008376]
[1746707638278,0.2033455,99569.0,99568.0,0.3688376]
[1746707640084,0.2033455,99569.0,99568.0,0.2008376]
[1746707640474,0.2033455,99569.0,99568.0,0.2018376]
[1746707640871,0.2033455,99569.0,99568.0,0.2038376]
[1746707641378,0.2008355,99569.0,99568.0,0.2038376]
[1746707641579,0.2008355,99569.0,99568.0,0.2048376]
[1746707643472,0.2008355,99569.0,99568.0,0.2693376]
[1746707644184,0.2008355,99569.0,99568.0,0.2673376]
[1746707644483,0.2008355,99569.0,99568.0,0.2703376]
[1746707645385,0.2008355,99569.0,99568.0,0.47485257]
[1746707646983,0.2008355,99569.0,99568.0,0.47285257]
[1746707647177,0.2008355,99569.0,99568.0,0.47485257]
[1746707647374,0.2008355,99569.0,99568.0,0.2703376]
[1746707647578,0.2008355,99569.0,99568.0,0.2693376]
[1746707648079,0.2008355,99569.0,99568.0,0.3001376]
[1746707648280,0.2008355,99569.0,99568.0,0.3011376]
[1746707648485,0.2008355,99569.0,99568.0,0.3021376]
[1746707651279,0.2008355,99569.0,99568.0,0.3001376]
[1746707651480,0.2008355,99569.0,99568.0,0.3021376]
[1746707652287,0.2008355,99569.0,99568.0,0.1013]
[1746707652583,0.2008355,99569.0,99568.0,0.003]
[1746707652788,0.2630355,99569.0,99568.0,0.003]
[1746707653390,0.4310355,99569.0,99568.0,0.001]
[1746707653589,0.4310355,99569.0,99568.0,0.003]
[1746707653889,0.4310355,99569.0,99568.0,0.002]
[1746707654096,0.2008456,99564.0,99563.0,0.5616476]
[1746707655189,0.2008456,99564.0,99563.0,0.3608]
[1746707656190,0.4319456,99564.0,99563.0,0.3608]
[1746707656486,0.4319456,99564.0,99563.0,0.3628]
[1746707656882,0.4319456,99564.0,99563.0,0.3608]
[1746707657177,0.4319456,99564.0,99563.0,0.3638]
[1746707658189,0.4018456,99564.0,99563.0,0.3618]
[1746707658391,0.4018456,99564.0,99563.0,0.5626476]
[1746707658990,0.4018456,99564.0,99563.0,0.3618]
[1746707659289,0.2338456,99564.0,99563.0,0.3618]
[1746707659778,0.2338456,99564.0,99563.0,0.3608]
[1746707659977,0.2338456,99564.0,99563.0,0.5626476]
[1746707660188,0.2338456,99564.0,99563.0,0.3618]
[1746707660388,0.2338456,99564.0,99563.0,0.3608]
[1746707660692,0.2338456,99564.0,99563.0,0.5626476]
[1746707660990,0.2338456,99564.0,99563.0,0.3628]
[1746707661291,0.2338456,99564.0,99563.0,0.3638]
[1746707662590,0.2338456,99564.0,99563.0,0.3943]
[1746707662777,0.2338456,99564.0,99563.0,0.3933]
[1746707662981,0.2338456,99564.0,99563.0,0.3943]
[1746707663590,0.2338456,99564.0,99563.0,0.3933]
[1746707663795,0.2338456,99564.0,99563.0,0.3943]
[1746707664184,0.4018456,99564.0,99563.0,0.3943]
[1746707665978,0.4319456,99564.0,99563.0,0.003]
[1746707666382,0.4319456,99564.0,99563.0,0.001]
[1746707666588,0.4319456,99564.0,99563.0,0.002]
[1746707667287,0.4319456,99564.0,99563.0,0.001]
[1746707667591,0.2008597,99557.0,99556.0,0.0619]
[1746707668188,0.3688597,99557.0,99556.0,0.0619]
[1746707669085,0.3688597,99557.0,99556.0,0.0639]
[1746707669279,0.4292597,99557.0,99556.0,0.0328]
[1746707670491,0.4292597,99557.0,99556.0,0.0318]
[1746707672388,0.4292597,99557.0,99556.0,0.0308]
[1746707672993,0.4302597,99557.0,99556.0,0.0308]
[1746707673583,0.4001597,99557.0,99556.0,0.0308]
[1746707673791,0.3698597,99557.0,99556.0,0.0308]
[1746707675992,0.3698597,99557.0,99556.0,0.0318]
[1746707676193,0.2018597,99557.0,99556.0,0.0318]
[1746707676794,0.2008597,99557.0,99556.0,0.0318]
[1746707678298,0.3688597,99557.0,99556.0,0.0318]
[1746707678691,0.3688597,99557.0,99556.0,0.04750206]
[1746707679598,0.3688597,99557.0,99556.0,0.04650206]
[1746707679791,0.3688597,99557.0,99556.0,0.06282835]
[1746707680192,0.3688597,99557.0,99556.0,0.06182835]
[1746707680494,0.3688597,99557.0,99556.0,0.06282835]
[1746707681094,0.2008597,99557.0,99556.0,0.06282835]
[1746707682700,0.2008597,99557.0,99556.0,0.06182835]
[1746707682993,0.2008597,99557.0,99556.0,0.06282835]
[1746707683199,0.3688597,99557.0,99556.0,0.06282835]
[1746707684398,0.3688597,99557.0,99556.0,0.04744014]
[1746707687505,0.3688597,99557.0,99556.0,0.0318]
[1746707687706,0.3688597,99557.0,99556.0,0.04710551]
[1746707688104,0.3688597,99557.0,99556.0,0.06244799]
[1746707689106,0.2008597,99557.0,99556.0,0.06244799]
[1746707689504,0.2008597,99557.0,99556.0,0.06272694]
[1746707690203,0.3688597,99557.0,99556.0,0.04738446]
[1746707691210,0.2008597,99557.0,99556.0,0.04738446]
[1746707691412,0.2008597,99557.0,99556.0,0.06282294]
[1746707692209,0.3688597,99557.0,99556.0,0.06282294]
[1746707696105,0.4302597,99557.0,99556.0,0.06282294]
[1746707696516,0.5180197,99557.0,99556.0,0.06282294]
[1746707696720,0.4880197,99557.0,99556.0,0.06282294]
[1746707697205,0.4880197,99557.0,99556.0,0.04723848]
[1746707697402,0.4880197,99557.0,99556.0,0.0318]
[1746707698001,0.4880197,99557.0,99556.0,0.06306736]
[1746707700211,0.4880197,99557.0,99556.0,0.07444438]
[1746707700903,0.4880197,99557.0,99556.0,0.07444435]
[1746707701814,0.46100623,99557.0,99556.0,0.07444435]
[1746707702015,0.46100623,99557.0,99556.0,0.06306736]
[1746707704018,0.46100623,99557.0,99556.0,0.0628114]
[1746707704317,0.46100623,99557.0,99556.0,0.0318]
[1746707704911,0.2008739,99550.0,99549.0,0.0326]
[1746707705115,0.200892,99541.0,99540.0,0.0326]
[1746707705420,0.561692,99541.0,99540.0,0.0326]
[1746707706118,0.729692,99541.0,99540.0,0.06370406]
[1746707706319,0.73708834,99541.0,99540.0,0.06367622]
[1746707707121,0.73708834,99541.0,99540.0,0.04830542]
[1746707707723,0.73708834,99541.0,99540.0,0.05030542]
[1746707707925,0.73708834,99541.0,99540.0,0.05130542]
[1746707711231,0.46400834,99541.0,99540.0,0.05130542]
[1746707712732,0.456612,99541.0,99540.0,0.05130542]
[1746707712925,0.456612,99541.0,99540.0,0.25219952]
[1746707713119,0.456612,99541.0,99540.0,0.42019952]
[1746707713120,0.288612,99541.0,99540.0,0.42019952]
[1746707713526,0.2886009,99550.0,99549.0,0.2008698]
[1746707713831,0.2886009,99550.0,99549.0,0.2636698]
[1746707714223,0.2886009,99550.0,99549.0,0.4316698]
[1746707714424,0.2886009,99550.0,99549.0,0.2308]
[1746707714619,0.2886009,99550.0,99549.0,0.24622815]
[1746707714924,0.2896009,99550.0,99549.0,0.24622815]
[1746707715631,0.2886009,99550.0,99549.0,0.2308]
[1746707717229,0.2886009,99550.0,99549.0,0.0941]
[1746707717621,0.2886009,99550.0,99549.0,0.10934328]
[1746707718125,0.2886009,99550.0,99549.0,0.11134328]
[1746707718622,0.2886009,99550.0,99549.0,0.31221918]
[1746707718822,0.2886009,99550.0,99549.0,0.0961]
[1746707720034,0.6494009,99550.0,99549.0,0.0636]
[1746707720236,0.6494009,99550.0,99538.0,0.15359593]
[1746707720237,0.2008941,99540.0,99539.0,0.0323]
[1746707720434,0.5616941,99540.0,99539.0,0.0323]
[1746707720838,0.2009163,99529.0,99528.0,0.00150711]
[1746707721136,0.3689163,99529.0,99528.0,0.00150711]
[1746707721524,0.8366363,99529.0,99528.0,0.00150711]
[1746707721724,0.8366363,99529.0,99527.0,0.15359593]
[1746707721725,0.2009183,99528.0,99527.0,0.15359593]
[1746707721936,0.72769431,99528.0,99527.0,0.05936842]
[1746707722134,0.89569431,99528.0,99527.0,0.05936842]
[1746707722338,1.39569431,99528.0,99527.0,0.05936842]
[1746707722527,1.39569431,99528.0,99527.0,2e-08]
[1746707722727,1.77569431,99528.0,99527.0,2e-08]
[1746707723543,0.2009425,99516.0,99511.0,0.062]
[1746707723744,0.5617425,99516.0,99511.0,0.062]
[1746707724136,0.7297425,99516.0,99511.0,0.062]
[1746707724334,1.0597425,99516.0,99505.0,0.0323]
[1746707724542,0.8302305,99516.0,99506.0,0.0614]
[1746707725238,1.3302305,99516.0,99515.0,0.00200487]
[1746707725445,1.3302305,99516.0,99515.0,0.00300487]
[1746707727250,1.6902305,99516.0,99515.0,7e-08]
[1746707728648,1.3302305,99516.0,99515.0,7e-08]
[1746707729555,1.6297425,99516.0,99515.0,7e-08]
[1746707730256,1.7302305,99516.0,99515.0,7e-08]
[1746707734755,1.7302305,99516.0,99487.0,0.0933]
[1746707734756,0.2009728,99501.0,99487.0,0.0933]
[1746707735058,0.2010031,99486.0,99464.0,0.3608]
[1746707735253,0.56950767,99486.0,99475.0,0.0309]
[1746707735452,0.67002368,99486.0,99475.0,0.0309]
[1746707736259,0.83802368,99486.0,99475.0,0.0309]
[1746707736560,0.83802368,99486.0,99485.0,0.00300517]
[1746707737057,0.73750767,99486.0,99485.0,0.00300517]
[1746707737258,0.7298031,99486.0,99485.0,0.00300517]
[1746707737855,0.7298031,99486.0,99485.0,0.00500517]
[1746707738256,0.5618031,99486.0,99485.0,0.00500517]
[1746707740164,0.7298031,99486.0,99485.0,0.00500517]
[1746707743263,0.5618031,99486.0,99485.0,0.00500517]
[1746707745171,0.7298031,99486.0,99485.0,0.00500517]
[1746707748667,1.06031911,99486.0,99485.0,7e-08]
[1746707749169,0.0502547,99479.0,99475.0,0.0309]
[1746707749376,0.5618233,99476.0,99475.0,0.0309]
[1746707749675,0.2010294,99473.0,99472.0,0.00150795]
[1746707749876,0.4210294,99473.0,99472.0,0.00150795]
[1746707750063,0.5890294,99473.0,99472.0,0.00150795]
[1746707750371,0.5890294,99473.0,99455.0,0.00100547]
[1746707750372,0.2010637,99456.0,99455.0,0.00100547]
[1746707750669,1.3003437,99456.0,99455.0,0.00100547]
[1746707751068,1.4683437,99456.0,99455.0,0.00100547]
[1746707751266,1.9683437,99456.0,99455.0,0.00100547]
[1746707751467,1.9683437,99456.0,99449.0,0.03140547]
[1746707751468,0.2010759,99450.0,99449.0,0.03140547]
[1746707751667,0.3410759,99450.0,99449.0,0.03140547]
[1746707752974,0.3410759,99450.0,99449.0,0.03240547]
[1746707752975,0.3460759,99450.0,99449.0,0.03240547]
[1746707753164,0.8460759,99450.0,99449.0,0.03240547]
[1746707753370,0.8460759,99450.0,99449.0,0.06510547]
[1746707753565,0.8500759,99450.0,99449.0,0.06610547]
[1746707753770,0.84856795,99450.0,99449.0,0.06610547]
[1746707755374,0.84856795,99450.0,99449.0,0.08132369]
[1746707755875,0.93624795,99450.0,99449.0,0.08132369]
[1746707756378,0.93624795,99450.0,99449.0,0.07982369]
[1746707756577,0.93608099,99450.0,99449.0,0.07982369]
[1746707756777,0.93608099,99450.0,99449.0,0.06460547]
[1746707757177,1.10408099,99450.0,99449.0,0.06460547]
[1746707757571,1.10408099,99450.0,99449.0,0.07983539]
[1746707758074,0.93608099,99450.0,99449.0,0.07983539]
[1746707758678,0.93457304,99450.0,99449.0,0.06460547]
[1746707759175,1.10257304,99450.0,99449.0,0.06460547]
[1746707760370,1.10257304,99450.0,99448.0,0.0324]
[1746707760371,0.2011001,99438.0,99437.0,9e-08]
[1746707760575,1.22032266,99438.0,99437.0,9e-08]
[1746707760971,1.22032266,99438.0,99437.0,0.01387102]
[1746707761171,1.95142266,99438.0,99437.0,0.01387102]
[1746707761680,1.95342266,99438.0,99437.0,0.01387102]
[1746707762967,1.95542266,99438.0,99437.0,0.01387102]
[1746707763367,1.95542266,99438.0,99437.0,2e-08]
[1746707763579,0.2011143,99431.0,99430.0,0.02980002]